fUST/lending_fUST_20260106
["ID","MTS","AMOUNT","RATE_DAILY","PERIOD"]
[400535319,1767702222955,-153.0,0.00042018,30]
[400535320,1767702223005,-153.0,0.00042018,30]
[400535321,1767702223057,-153.0,0.00042018,30]
[400535322,1767702223106,-153.0,0.00042018,30]
[400535323,1767702223160,-153.0,0.00042018,30]
[400535324,1767702223209,-153.0,0.00042018,30]
[400535325,1767702223259,-1017.15,0.00042028,120]
[400535326,1767702223310,-1017.15,0.00042128,120]
[400535327,1767702223365,-1017.15,0.00042228,120]
[400535328,1767702223422,-169.55,0.00042253,63]
[400535329,1767702223479,-1017.15,0.00042328,120]
[400535330,1767702223533,-1041.66666667,0.000424,120]
[400535331,1767702223588,-935.68,0.00042465,51]
[400535332,1767702223640,-2921.37,0.00042465,120]
[400535333,1767702223692,-150.0,0.000425,120]
[400535334,1767702223747,-1017.15,0.00042628,120]
[400535335,1767702223801,-1017.15,0.00042728,120]
[400535336,1767702223857,-1017.15,0.00042828,120]
[400535337,1767702223914,-153.0,0.0004284,30]
[400535338,1767702223969,-153.0,0.0004284,30]
[400535339,1767702224029,-153.0,0.0004284,30]
[400535340,1767702224085,-306.0,0.0004284,30]
[400535341,1767702224140,-2000.0,0.000429,120]
[400535342,1767702224193,-1017.15,0.00042928,120]
[400535343,1767702224244,-172.82719413,0.00042983,60]
[400535344,1767702224298,-506.78,0.00043,120]
[400535345,1767702224354,-1000.0,0.00043,120]
[400535346,1767702224411,-400.0,0.00043,120]
[400535347,1767702224466,-935.68,0.00043013,52]
[400535348,1767702224522,-1017.15,0.00043028,120]
[400535349,1767702224581,-151.7032824,0.00043029,60]
[400535350,1767702224640,-1017.15,0.00043128,120]
[400535351,1767702224700,-1017.15,0.00043228,120]
[400535352,1767702224758,-21578.38086095,0.00043257,47]
[400535353,1767702224816,-1017.15,0.00043328,120]
[400535354,1767702224878,-1017.15,0.00043428,120]
[400535355,1767702224936,-450146.9033,0.00043444,30]
[400535356,1767702224996,-400.0,0.000435,120]
[400535357,1767702225054,-20029.11640324,0.000435,120]
[400535358,1767702225111,-1017.15,0.00043528,120]
[400535359,1767702225166,-151.7032824,0.00043536,60]
[400535360,1767702225221,-935.82614526,0.00043561,53]
[400535361,1767702225384,-1017.15,0.00043628,120]
[400535362,1767702225474,-923.43117615,0.00043675,120]
[400535363,1767702225539,-1017.15,0.00043728,120]
[400535364,1767702225603,-15000.0,0.000438,120]
[400535365,1767702225663,-508.0,0.000438,90]
[400535366,1767702225721,-1000.0,0.000438,90]
[400535367,1767702225780,-1000.0,0.000438,90]
[400535368,1767702225837,-1000.0,0.000438,90]
[400535369,1767702225894,-453.2285732,0.000438,30]
[400535370,1767702225952,-1017.15,0.00043828,120]
[400535371,1767702226013,-2921.37,0.00043835,120]
[400535372,1767702226072,-2000.0,0.000439,120]
[400535373,1767702226129,-1017.15,0.00043928,120]
[400535374,1767702226183,-550.0,0.00044,120]
[400535375,1767702226236,-200.0,0.00044,120]
[400535376,1767702226288,-5600.0,0.00044,50]
[400535377,1767702226348,-1017.15,0.00044028,120]
[400535378,1767702226409,-1017.15,0.00044128,120]
[400535379,1767702226470,-1017.30175989,0.00044328,120]
[400535380,1767702226526,-200.0,0.00044375,120]
[400535381,1767702226581,-200.0,0.00044375,120]
[400535382,1767702226634,-200.0,0.00044375,120]
[400535383,1767702226693,-216.06588774,0.00044375,120]
[400535384,1767702226746,-500.0,0.000445,120]
[400535385,1767702226806,-22471.23006349,0.00044723,49]
[400535386,1767702226867,-256424.91082744,0.000448,120]
[400535387,1767702256043,-19893.0,0.00036268,30]
[400535388,1767702256111,-1041.66666667,0.0004,120]
[400535389,1767702256166,-1041.66666667,0.0004,30]
[400535390,1767702256218,-1041.66666667,0.000412,120]
[400535391,1767702256266,-19893.0,0.000424,60]
[400535392,1767702256318,-304203.6533234,0.000448,120]
[400535393,1767702256366,-19893.0,0.000448,60]
[400535394,1767702256415,-2000.0,0.000449,120]
[400535395,1767702256461,-373.58644019,0.000449,120]
[400535396,1767702256511,-506.15512439,0.00045,120]
[400535397,1767702256568,-973.0,0.00045,120]
[400535398,1767702256620,-5000.0,0.00045,75]
[400535399,1767702256673,-5107.827176,0.00045,60]
[400535400,1767702256720,-150.80750941,0.00045,120]
[400535401,1767702256768,-12187.0,0.00045,120]
[400535402,1767702256816,-1547.12010872,0.00045,120]
[400535403,1767702256866,-636.4532102,0.00045,120]
[400535404,1767702256921,-1196.04668572,0.00045,120]
[400535405,1767702256974,-1736.40488991,0.00045,120]
[400535406,1767702257026,-3760.416156,0.00045,120]
[400535407,1767702257078,-2498.98994472,0.00045,120]
[400535408,1767702257128,-1453.02210874,0.00045,30]
[400535409,1767702257182,-197.8750284,0.00045,120]
[400535410,1767702257234,-270.82,0.00045,120]
[400535411,1767702257284,-632.32,0.00045,120]
[400535412,1767702257334,-245.48,0.00045,120]
[400535413,1767702257389,-185.65,0.00045,120]
[400535414,1767702257441,-200.52,0.00045205,30]
[400535415,1767702257489,-151.7032824,0.00045328,60]
[400535416,1767702257540,-279.8111705,0.000454,120]
[400535417,1767702257594,-52921.2479,0.0004544,30]
[400535418,1767702257647,-1698464.2084,0.00045444,30]
[400535419,1767702257700,-600.0,0.000455,120]
[400535420,1767702257754,-151.73214596,0.00045892,60]
[400535421,1767702257807,-2000.0,0.000459,120]
[400535422,1767702257861,-500.0,0.00046,120]
[400535423,1767702257915,-500.0,0.00046,120]
[400535424,1767702257971,-200.0,0.00046,120]
[400535425,1767702258030,-1000.0,0.00046,60]
[400535426,1767702258089,-10000.0,0.00046,120]
[400535427,1767702258146,-1161.67900047,0.00046,30]
[400535428,1767702258203,-23364.07926603,0.00046189,51]
[400535429,1767702258257,-833.12,0.000464,90]
[400535430,1767702258310,-672.2,0.000464,90]
[400535431,1767702258366,-500.0,0.000465,120]
[400535432,1767702258423,-879.01,0.00046887,90]
[400535433,1767702258482,-2000.0,0.000469,120]
[400535434,1767702258548,-1000.0,0.00047,120]
[400535435,1767702258616,-500.0,0.00047,120]
[400535436,1767702258670,-10000.0,0.00047,120]
[400535437,1767702258723,-6039.69423385,0.00047,120]
[400535438,1767702258778,-632.32,0.0004725,120]
[400535439,1767702258835,-185.65,0.0004725,120]
[400535440,1767702258893,-245.48,0.0004725,120]
[400535441,1767702258958,-777350.91689498,0.00047444,30]
[400535442,1767702262588,-1825.86,0.00032876,120]
[400535443,1767702262646,-1825.86,0.00034246,120]
[400535444,1767702262702,-1825.86,0.00035616,120]
[400535445,1767702262770,-1825.86,0.00036986,120]
[400535446,1767702262824,-1825.86,0.00038356,120]
[400535447,1767702262879,-1825.86,0.00039726,120]
[400535448,1767702262931,-1825.86,0.00041095,120]
[400535449,1767702262980,-1825.86,0.00042465,120]
[400535450,1767702263028,-1825.86,0.00043835,120]
[400535451,1767702263079,-1825.86,0.00045205,120]
[400535452,1767702263127,-1825.86,0.00046575,120]
[400535453,1767702263176,-921113.29150502,0.00047444,30]
[400535454,1767702263225,-500.0,0.000475,120]
[400535455,1767702263278,-24256.92846857,0.00047656,53]
[400535456,1767702263329,-232.52,0.0004782,120]
[400535457,1767702263381,-2000.0,0.000479,120]
[400535458,1767702263435,-1825.86,0.00047945,120]
[400535459,1767702263490,-1000.0,0.00047999,120]
[400535460,1767702263545,-1000.0,0.00048,120]
[400535461,1767702263739,-200.0,0.00048,120]
[400535462,1767702263797,-1991.0,0.00048,120]
[400535463,1767702263854,-293.17557247,0.00048,120]
[400535464,1767702263912,-1264.0,0.00048,120]
[400535465,1767702263967,-199.39254139,0.00048,120]
[400535466,1767702264230,-637.22,0.00048,120]
[400535467,1767702264297,-1687.04599779,0.00048398,120]
[400535468,1767702264366,-1297.45531597,0.00048398,120]
[400535469,1767702264429,-1000.0,0.000485,120]
[400535470,1767702264493,-32850.46447585,0.0004888,120]
[400535471,1767702264557,-2000.0,0.000489,120]
[400535472,1767702264625,-3179.325864,0.000489,120]
[400535473,1767702264689,-2205.55649434,0.00049,120]
[400535474,1767702264749,-1088.0,0.00049,120]
[400535475,1767702264810,-200.0,0.00049,120]
[400535476,1767702264871,-606.64320547,0.00049,120]
[400535477,1767702264934,-73841.440057,0.00049,120]
[400535478,1767702264999,-29789.45796799,0.00049,120]
[400535479,1767702265061,-1633.31670603,0.00049,120]
[400535480,1767702265121,-10000.0,0.00049,120]
[400535481,1767702265181,-1373.0,0.00049041,120]
[400535482,1767702265240,-25149.77767111,0.00049122,55]
[400535483,1767702265300,-500.0,0.00049315,120]
[400535484,1767702265361,-1825.86,0.00049315,120]
[400535485,1767702265423,-1074.967169,0.0004943,120]
[400535486,1767702265482,-1698464.2084,0.00049444,30]
[400535487,1767702265540,-1000.0,0.000495,120]
[400535488,1767702265601,-157.47,0.0004951,30]
[400535489,1767702265658,-1201.01632623,0.00049516,120]
[400535490,1767702265710,-500.0,0.00049589,120]
[400535491,1767702265760,-1597.72928761,0.000496,120]
[400535492,1767702265812,-632.32,0.00049613,120]
[400535493,1767702265866,-185.65,0.00049613,120]
[400535494,1767702265920,-10000.0,0.000497,120]
[400535495,1767702265974,-237.15484609,0.00049863,120]
[400535496,1767702266023,-1398.0,0.00049898,66]
[400535497,1767702266072,-180.53038472,0.00049899,120]
[400535498,1767702266117,-2000.0,0.000499,120]
[400535499,1767702266159,-2000.97,0.000499,30]
[400535500,1767702266202,-80162.813714,0.0004999,120]
[400535501,1767702266244,-32381.97802935,0.00049998,120]
[400535502,1767702269727,-22622.65943007,0.00049998,120]
[400535503,1767702269786,-1000.0,0.00049999,120]
[400535504,1767702269846,-556.03631805,0.0005,120]
[400535505,1767702269905,-30213.8068,0.0005,60]
[400535506,1767702269970,-1000.0,0.0005,120]
[400535507,1767702270040,-200.0,0.0005,120]
[400535508,1767702270089,-2527433.33755059,0.0005,120]
[400535509,1767702270134,-356.35019,0.0005,120]
[400535510,1767702270178,-1000.0,0.0005,60]
[400535511,1767702270221,-10000.0,0.0005,120]
[400535512,1767702270266,-186583.92870964,0.0005,120]
[400535513,1767702270311,-10000.0,0.0005,60]
[400535514,1767702270359,-2535.2294926,0.0005,120]
[400535515,1767702270411,-206498.65150905,0.0005,120]
[400535516,1767702273814,-17406.0,0.00036268,30]
[400535517,1767702273884,-17406.0,0.000424,60]
[400535518,1767702273945,-459611.98359911,0.0005,120]
[400535519,1767702274001,-1000.0,0.0005,120]
[400535520,1767702274053,-1500.0,0.0005,120]
[400535521,1767702274104,-683.0,0.0005,120]
[400535522,1767702274152,-1964.90059245,0.0005,120]
[400535523,1767702274198,-433.31114677,0.0005,120]
[400535524,1767702274243,-815.64528224,0.0005,120]
[400535525,1767702274291,-853.17442738,0.0005,120]
[400535526,1767702274347,-300.0,0.0005,120]
[400535527,1767702274399,-2498.98994472,0.0005,120]
[400535528,1767702274452,-609.0,0.0005,120]
[400535529,1767702274502,-165.27253488,0.0005,120]
[400535530,1767702274555,-1511.63146574,0.0005,30]
[400535531,1767702274612,-1765.94130957,0.0005,120]
[400535532,1767702274665,-2669.27999691,0.0005,120]
[400535533,1767702274716,-152.0,0.0005,120]
[400535534,1767702274774,-200.0,0.0005,120]
[400535535,1767702274834,-1876.08880435,0.0005,120]
[400535536,1767702274893,-17406.0,0.0005,60]
[400535537,1767702274953,-1000.0,0.000505,120]
[400535538,1767702275014,-26042.62687365,0.00050589,56]
[400535539,1767702275072,-1825.86,0.00050684,120]
[400535540,1767702275128,-2000.0,0.000509,120]
[400535541,1767702275182,-1000.0,0.00051,120]
[400535542,1767702275237,-1000.0,0.00051,120]
[400535543,1767702275291,-508.0,0.00051,120]
[400535544,1767702275349,-1000.0,0.00051,120]
[400535545,1767702275406,-3000.0,0.00051,85]
[400535546,1767702275462,-200.0,0.00051,120]
[400535547,1767702275516,-3000.0,0.0005101,85]
[400535548,1767702275574,-3000.0,0.0005102,85]
[400535549,1767702275630,-3000.0,0.0005103,85]
[400535550,1767702275685,-3000.0,0.0005104,85]
[400535551,1767702275741,-3000.0,0.0005105,85]
[400535552,1767702275795,-3000.0,0.0005106,85]
[400535553,1767702275851,-5787.380415,0.0005107,85]
[400535554,1767702275908,-4577.0966527,0.000512,120]
[400535555,1767702275961,-200.0,0.000514,120]
[400535556,1767702276010,-115480.725769,0.0005149,120]
[400535557,1767702276058,-628.202828,0.00051495,120]
[400535558,1767702276107,-1000.0,0.000515,120]
[400535559,1767702284787,15230.0,0.000515,120]
[400535560,1767702284971,15230.0,0.000424,60]
[400535561,1767702285129,15230.0,0.00036268,30]
[400535562,1767702336077,-146588.2859236,0.00036981,30]
[400535563,1767702336104,-409.150764,0.00036981,31]
[400535564,1767702336131,-409.150764,0.00036981,31]
[400535565,1767702336158,-409.150764,0.00036981,31]
[400535566,1767702336196,-409.150764,0.00036981,31]
[400535567,1767702336224,-409.150764,0.00036981,31]
[400535568,1767702336253,-409.150764,0.00036981,31]
[400535569,1767702336280,-409.150764,0.00036981,31]
[400535570,1767702336307,-409.150764,0.00036981,31]
[400535571,1767702336335,-409.150764,0.00036981,31]
[400535572,1767702336522,-409.150764,0.00036981,31]
[400535573,1767702336552,-409.150764,0.00036981,31]
[400535574,1767702336582,-409.150764,0.00036981,31]
[400535575,1767702336609,-409.150764,0.00036981,31]
[400535576,1767702336637,-409.150764,0.00036981,31]
[400535577,1767702336664,-409.150764,0.00036981,31]
[400535578,1767702336689,-409.150764,0.00036981,31]
[400535579,1767702336714,-409.150764,0.00036981,31]
[400535580,1767702336741,-409.150764,0.00036981,31]
[400535581,1767702336767,-409.150764,0.00036981,31]
[400535582,1767702336794,-409.15076,0.00036981,31]
[400535583,1767702336821,-156.305518,0.00036981,31]
[400535584,1767702336847,-154.885858,0.00036981,31]
[400535585,1767702337188,11659.99999999,0.00036981,30]
[400535586,1767702337459,158248.3859236,0.00036981,30]
[400535587,1767702339974,415.45,0.00036981,30]
[400535588,1767702340348,415.55,0.00036981,30]
[400535589,1767702343431,311.95,0.00036981,30]
[400535590,1767702343938,312.05,0.00036981,30]
[400535591,1767702355099,-3704.68361789,0.00030137,120]
[400535592,1767702355126,-4304.18701625,0.00030293,30]
[400535593,1767702355153,-155.0,0.00030685,41]
[400535594,1767702355179,-4664.00659329,0.00031743,32]
[400535595,1767702355212,-5030.34493458,0.00033194,34]
[400535596,1767702355239,-5402.92602628,0.00034645,36]
[400535597,1767702355265,-161.0,0.00035616,80]
[400535598,1767702355291,-2579.26537667,0.00036087,38]
[400535599,1767702355321,-5781.50037664,0.00036096,38]
[400535600,1767702355348,-470.0,0.00036981,30]
[400535601,1767702355382,-6165.841192,0.00037547,40]
[400535602,1767702355409,-2189.85,0.00038,30]
[400535603,1767702355436,-6555.74126961,0.00038998,42]
[400535604,1767702355464,-6951.01044495,0.00040448,43]
[400535605,1767702355488,-470.0,0.00040819,60]
[400535606,1767702355513,-7351.47347349,0.00041899,45]
[400535607,1767702355539,-7756.96825728,0.0004335,47]
[400535608,1767702355568,-1000.0,0.000438,90]
[400535609,1767702355594,-8167.34434795,0.00044801,49]
[400535610,1767702355620,-210.77,0.00045,30]
[400535611,1767702355646,-1860.68,0.00045,30]
[400535612,1767702355672,-8582.46167371,0.00046252,51]
[400535613,1767702355697,-210.77,0.0004725,30]
[400535614,1767702355723,-1860.68,0.0004725,30]
[400535615,1767702355866,-9002.18944941,0.00047703,53]
[400535616,1767702355922,-232.52,0.0004794,120]
[400535617,1767702355952,-9426.40523749,0.00049153,55]
[400535618,1767702355981,-800.0,0.00049439,30]
[400535619,1767702356008,-210.77,0.00049613,30]
[400535620,1767702356038,-1860.68,0.00049613,30]
[400535621,1767702356065,-800.0,0.0004994,30]
[400535622,1767702356093,-800.0,0.00049994,30]
[400535623,1767702356120,-1888.0,0.00049999,30]
[400535624,1767702356148,-1957.856,0.00049999,30]
[400535625,1767702356175,-609.0,0.0005,120]
[400535626,1767702356202,-780.2446777,0.0005,120]
[400535627,1767702356230,-1876.08880435,0.0005,120]
[400535628,1767702356261,-500.0,0.000505,60]
[400535629,1767702356291,-503.26996152,0.000505,30]
[400535630,1767702356318,-9854.99413423,0.00050604,56]
[400535631,1767702356347,-250.0,0.00051499,120]
[400535632,1767702356373,-151.0,0.00051499,120]
[400535633,1767702356402,-500.0,0.00051499,120]
[400535634,1767702356429,-2000.0,0.00051499,120]
[400535635,1767702356458,-250.0,0.00051499,120]
[400535636,1767702356494,-250.0,0.00051499,120]
[400535637,1767702356525,-1500.0,0.00051499,120]
[400535638,1767702356568,-151.0,0.00051499,120]
[400535639,1767702356597,-500.0,0.00051499,120]
[400535640,1767702356624,-414.0,0.00051499,120]
[400535641,1767702356651,-250.0,0.00051499,120]
[400535642,1767702356677,-250.0,0.00051499,120]
[400535643,1767702356703,-2074.0,0.00051499,120]
[400535644,1767702356729,-151.0,0.00051499,120]
[400535645,1767702356759,-500.0,0.00051499,120]
[400535646,1767702356787,-250.0,0.00051499,120]
[400535647,1767702356814,-284.81541955,0.00051499,120]
[400535648,1767702356840,-2150.738,0.00051499,120]
[400535649,1767702356867,-151.0,0.00051499,120]
[400535650,1767702356893,-429.318,0.00051499,120]
[400535651,1767702356920,-250.0,0.00051499,120]
[400535652,1767702356946,-2230.315306,0.00051499,120]
[400535653,1767702356973,-151.0,0.00051499,120]
[400535654,1767702357005,-500.0,0.00051499,120]
[400535655,1767702357033,-151.0,0.00051499,120]
[400535656,1767702357060,-250.0,0.00051499,120]
[400535657,1767702357086,-2312.83697232,0.00051499,120]
[400535658,1767702357113,-151.0,0.00051499,120]
[400535659,1767702357140,-269.27511332,0.00051499,120]
[400535660,1767702357176,-445.202766,0.00051499,120]
[400535661,1767702357220,-500.0,0.00051499,120]
[400535662,1767702357256,-1270.38311729,0.00051499,120]
[400535663,1767702357291,-156.587,0.00051499,120]
[400535664,1767702357329,-461.67526834,0.00051499,120]
[400535665,1767702357367,-151.0,0.00051499,120]
[400535666,1767702357403,-162.380719,0.00051499,120]
[400535667,1767702357440,-478.75725328,0.00051499,120]
[400535668,1767702357474,-151.0,0.00051499,120]
[400535669,1767702357505,-151.0,0.00051499,120]
[400535670,1767702357539,-500.0,0.00051499,120]
[400535671,1767702357579,-500.0,0.00051499,120]
[400535672,1767702357615,-500.0,0.00051499,120]
[400535673,1767702357645,-168.3888056,0.00051499,120]
[400535674,1767702357678,-151.0,0.00051499,120]
[400535675,1767702357712,-500.0,0.00051499,120]
[400535676,1767702357745,-417.0,0.00051499,120]
[400535677,1767702357780,-151.0,0.00051499,120]
[400535678,1767702357813,-500.0,0.00051499,120]
[400535679,1767702357849,-417.0,0.00051499,120]
[400535680,1767702357883,-500.0,0.00051499,120]
[400535681,1767702357917,-417.0,0.00051499,120]
[400535682,1767702357950,-174.61919142,0.00051499,120]
[400535683,1767702357985,-341.97007495,0.00051499,120]
[400535684,1767702358017,-417.0,0.00051499,120]
[400535685,1767702358050,-151.0,0.00051499,120]
[400535686,1767702358083,-500.0,0.00051499,120]
[400535687,1767702358115,-153.33454002,0.00051499,120]
[400535688,1767702358147,-500.0,0.00051499,120]
[400535689,1767702358181,-417.0,0.00051499,120]
[400535690,1767702358208,-151.0,0.00051499,120]
[400535691,1767702358236,-500.0,0.00051499,120]
[400535692,1767702358265,-500.0,0.00051499,120]
[400535693,1767702358292,-417.0,0.00051499,120]
[400535694,1767702358319,-500.0,0.00051499,120]
[400535695,1767702358346,-500.0,0.00051499,120]
[400535696,1767702358372,-417.0,0.00051499,120]
[400535697,1767702358399,-500.0,0.00051499,120]
[400535698,1767702358425,-500.0,0.00051499,120]
[400535699,1767702358451,-154.09960096,0.00051499,120]
[400535700,1767702358477,-417.0,0.00051499,120]
[400535701,1767702358504,-151.0,0.00051499,120]
[400535702,1767702358530,-500.0,0.00051499,120]
[400535703,1767702358557,-417.0,0.00051499,120]
[400535704,1767702358784,-500.0,0.00051499,120]
[400535705,1767702358819,-381.88170042,0.00051499,120]
[400535706,1767702358846,-417.0,0.00051499,120]
[400535707,1767702358873,-500.0,0.00051499,120]
[400535708,1767702358900,-417.0,0.00051499,120]
[400535709,1767702358927,-500.0,0.00051499,120]
[400535710,1767702358954,-160.0,0.00051499,120]
[400535711,1767702358980,-417.0,0.00051499,120]
[400535712,1767702359007,-500.0,0.00051499,120]
[400535713,1767702359032,-151.0,0.00051499,120]
[400535714,1767702359058,-151.0,0.00051499,120]
[400535715,1767702359084,-417.0,0.00051499,120]
[400535716,1767702359110,-500.0,0.00051499,120]
[400535717,1767702359135,-417.0,0.00051499,120]
[400535718,1767702359161,-511.14869574,0.00051499,120]
[400535719,1767702359190,-417.0,0.00051499,120]
[400535720,1767702359216,-160.23368288,0.00051499,120]
[400535721,1767702359242,-417.0,0.00051499,120]
[400535722,1767702359271,-151.0,0.00051499,120]
[400535723,1767702359298,-151.0,0.00051499,120]
[400535724,1767702359324,-417.0,0.00051499,120]
[400535725,1767702359349,-417.0,0.00051499,120]
[400535726,1767702359374,-329.53010742,0.00051499,120]
[400535727,1767702359401,-417.0,0.00051499,120]
[400535728,1767702359428,-250.0,0.00051499,120]
[400535729,1767702359455,-500.0,0.00051499,120]
[400535730,1767702359481,-417.0,0.00051499,120]
[400535731,1767702359509,-500.0,0.00051499,120]
[400535732,1767702359537,-250.0,0.00051499,120]
[400535733,1767702359567,-151.0,0.00051499,120]
[400535734,1767702359598,-500.0,0.00051499,120]
[400535735,1767702359626,-250.0,0.00051499,120]
[400535736,1767702359653,-151.0,0.00051499,120]
[400535737,1767702359680,-417.0,0.00051499,120]
[400535738,1767702359707,-151.0,0.00051499,120]
[400535739,1767702359734,-500.0,0.00051499,120]
[400535740,1767702359762,-250.0,0.00051499,120]
[400535741,1767702359790,-151.0,0.00051499,120]
[400535742,1767702359816,-151.0,0.00051499,120]
[400535743,1767702359843,-500.0,0.00051499,120]
[400535744,1767702359870,-250.0,0.00051499,120]
[400535745,1767702359898,-151.0,0.00051499,120]
[400535746,1767702359925,-262.01339487,0.00051499,120]
[400535747,1767702359952,-417.0,0.00051499,120]
[400535748,1767702359980,-151.0,0.00051499,120]
[400535749,1767702360008,-151.06919127,0.00051499,120]
[400535750,1767702360036,-417.0,0.00051499,120]
[400535751,1767702360064,-419.12863019,0.00051499,120]
[400535752,1767702360091,-200.0,0.000515,120]
[400535753,1767702360119,-152.0,0.000515,120]
[400535754,1767702360146,-152.0,0.000515,120]
[400535755,1767702360175,-152.0,0.000515,120]
[400535756,1767702360204,-152.0,0.000515,120]
[400535757,1767702360232,-152.0,0.000515,120]
[400535758,1767702360260,-152.0,0.000515,120]
[400535759,1767702360288,-152.0,0.000515,120]
[400535760,1767702360316,-152.0,0.000515,120]
[400535761,1767702360345,-284.0,0.000515,120]
[400535762,1767702360374,-470.0,0.000515,120]
[400535763,1767702360402,-177.798,0.00051592,120]
[400535764,1767702360430,-2145.0,0.00051592,120]
[400535765,1767702360458,-100000.0,0.00051678,120]
[400535766,1767702360490,-157.47,0.0005179,30]
[400535767,1767702360518,-209985.10049813,0.00051888,120]
[400535768,1767702360547,-50000.0,0.000519,120]
[400535769,1767702360575,-2000.0,0.000519,120]
[400535770,1767702360602,-165.0,0.00051945,120]
[400535771,1767702360629,-1000.0,0.00051999,120]
[400535772,1767702360656,-1000.0,0.00052,120]
[400535773,1767702360684,-200.0,0.00052,120]
[400535774,1767702360712,-2000.0,0.00052,90]
[400535775,1767702360741,-2000.0,0.00052,90]
[400535776,1767702360769,-2000.0,0.00052,60]
[400535777,1767702360797,-14042.28150035,0.00052,80]
[400535778,1767702360824,-1000.0,0.00052,120]
[400535779,1767702360853,-280947.20505988,0.00052,120]
[400535780,1767702360880,-3606.13971044,0.00052,120]
[400535781,1767702360908,-248.10754684,0.00052,30]
[400535782,1767702360935,-3000.0,0.00052,120]
[400535783,1767702360962,-20394.0,0.00052,120]
[400535784,1767702361080,-200.0,0.00052,120]
[400535785,1767702361108,-1830.38,0.00052054,120]
[400535786,1767702361135,-1830.38,0.00052054,120]
[400535787,1767702361164,-1830.38,0.00052054,120]
[400535788,1767702361191,-1830.38,0.00052054,120]
[400535789,1767702361218,-1830.38,0.00052054,120]
[400535790,1767702361245,-1830.38,0.00052054,120]
[400535791,1767702361272,-1830.38,0.00052054,120]
[400535792,1767702361299,-1830.38,0.00052054,120]
[400535793,1767702361326,-1830.38,0.00052054,120]
[400535794,1767702361353,-1830.38,0.00052054,120]
[400535795,1767702361380,-1830.38,0.00052054,120]
[400535796,1767702361408,-1830.38,0.00052054,120]
[400535797,1767702361435,-1830.38,0.00052054,120]
[400535798,1767702361462,-1830.38,0.00052054,120]
[400535799,1767702361491,-1830.38,0.00052054,120]
[400535800,1767702361518,-1830.38,0.00052054,120]
[400535801,1767702361547,-1830.38,0.00052054,120]
[400535802,1767702361577,-1830.38,0.00052054,120]
[400535803,1767702361607,-1830.38,0.00052054,120]
[400535804,1767702361635,-1830.38,0.00052054,120]
[400535805,1767702361664,-1830.38,0.00052054,120]
[400535806,1767702361691,-1830.38,0.00052054,120]
[400535807,1767702361718,-1830.38,0.00052054,120]
[400535808,1767702361744,-1830.50666107,0.00052054,120]
[400535809,1767702361774,-1825.86,0.00052054,120]
[400535810,1767702361803,-151.0,0.00052055,32]
[400535811,1767702361832,-156.587,0.00052055,30]
[400535812,1767702361861,-10287.848061,0.00052055,58]
[400535813,1767702361891,-1860.68,0.00052093,30]
[400535814,1767702361918,-600.0,0.000525,120]
[400535815,1767702361947,-3000.0,0.000525,120]
[400535816,1767702361975,-2000.0,0.000529,120]
[400535817,1767702362004,-490292.08792929,0.000529,120]
[400535818,1767702362031,-65309.36,0.000529,120]